Cogmind - Beta 15 @@@ ROGUE MODE // 2025.06.19 @ 11:40:56 Player: cingulata Result: Destroyed by J3-BP2(R) with Subdweller Shrapnel Launcher Performance ------------- Evolutions (0) 0 Regions Visited (3) 600 Robots Destroyed (20) 100 Value Destroyed (451) 451 Prototype IDs (0) 0 Alien Tech Used (0) 0 Bonus (0) 0 TOTAL SCORE: 1151 Bonus ------- None Cogmind --------- Core Integrity 0/250 Matter 198/300 Energy 125/125 System Corruption 0% Temperature Cool (0) Movement Rolling (105) Ox1 Location -10/Subcaves Parts ------- > --- POWER (1) -------- Light Ion Engine > --- PROPULSION (2) --- Armored Wheel Armored Wheel > --- UTILITY (2) ------ High-capacity Storage Unit Seismic Detector > --- WEAPON (2) ------- Assault Rifle > --- INVENTORY (20) --- Light Treads Light Treads Armored Wheel Heat Sink Large Storage Unit Medium Matter Pod (100) High-capacity Matter Pod (0) Seismic Detector Targeting Computer Light Armor Plating Light Armor Plating Hacking Suite Tractor Beam Assault Rifle Assault Rifle Rocket Launcher Datajack Mace Peak State ------------ > --- POWER ------------ Light Ion Engine > --- PROPULSION ------- Armored Wheel Armored Wheel > --- UTILITY ---------- High-capacity Storage Unit Seismic Detector > --- WEAPON ----------- Assault Rifle Mace > --- INVENTORY -------- Light Ion Engine Light Treads Light Treads Armored Wheel Armored Wheel Heat Sink Large Storage Unit Medium Matter Pod High-capacity Matter Pod Seismic Detector Targeting Computer Light Armor Plating Light Armor Plating Hacking Suite Tractor Beam Assault Rifle Assault Rifle Rocket Launcher Rocket Launcher Datajack [Rating: 12] Favorites ----------- Power Ion Engine Engine Ion Engine Propulsion Armored Wheel Treads Light Treads Wheel Armored Wheel Utility High-capacity Storage Unit Device Seismic Detector Storage High-capacity Storage Unit Protection Light Armor Plating Weapon Assault Rifle Ballistic Gun Assault Rifle Launcher Rocket Launcher Impact Weapon Mace Slashing Weapon Mining Claw Build | -11 -10 -10 -10 ------- Run | Yrd Mat Min Sub Slots Evolved . | . . . . Power . | . . . . Propulsion . | . . . . Utility . | . . . . Weapon . | . . . . Parts Attached 23 | 7 13 . 3 Power 3 | 1 1 . 1 Engine 3 | 1 1 . 1 Core . | . . . . Reactor . | . . . . Propulsion 8 | 2 5 . 1 Treads 2 | . 2 . . Leg . | . . . . Wheel 6 | 2 3 . 1 Hover . | . . . . Flight . | . . . . Utility 5 | 2 3 . . Device 1 | 1 . . . Storage 3 | 1 2 . . Processor . | . . . . Hackware . | . . . . Protection 1 | . 1 . . Artifact . | . . . . Weapon 7 | 2 4 . 1 Energy Gun . | . . . . Energy Cannon . | . . . . Ballistic Gun 4 | 2 2 . . Ballistic Cannon . | . . . . Launcher 1 | . . . 1 Special Weapon . | . . . . Impact Weapon 1 | . 1 . . Slashing Weapon 1 | . 1 . . Piercing Weapon . | . . . . Special Melee Weapon . | . . . . Unidentified Prototypes . | . . . . Parts Lost 6 | . 3 . 3 Power 2 | . 1 . 1 Propulsion 2 | . 1 . 1 Utility . | . . . . Weapon 2 | . 1 . 1 Highest Loss Streak 3 | . 2 . 3 To Critical Strikes . | . . . . Average Backups 15 | 3 15 20 19 Power 1 | . 1 1 1 Propulsion 3 | 2 3 4 3 Utility 6 | . 6 10 10 Weapon 3 | . 3 4 4 Tool/Special . | . . . . Unused Backups 17 | . 5 . 12 Power . | . . . . Propulsion 3 | . 2 . 1 Utility 9 | . 1 . 8 Weapon 4 | . 2 . 2 Tool/Special 1 | . . . 1 Average Slot Usage (%) 99 | . 99 100 100 Engine 14 | . 14 14 14 Treads 5 | . 6 . . Wheel 22 | . 20 28 28 Device 11 | . 10 14 14 Storage 16 | . 16 14 14 Ballistic Gun 23 | . 22 28 25 Slashing Weapon 3 | . 4 . . Peak Build Rating 12 | 7 12 11 12 Average Rating 8 | 5 8 11 11 On Entrance 7 | . 7 11 11 Naked Turns . | . . . . Heaviest Build 69 | 15 69 48 50 Greatest Support 40 | 26 40 24 24 Greatest Overweight (x) 2 | 2 2 1 2 Average Overweight (x) . | . 1 1 1 Largest Inventory Capacity 20 | 8 20 20 20 Average Capacity 19 | 7 19 20 20 Most Carried 20 | 6 20 20 20 Average Carried 15 | 3 15 20 19 Final Capacity 20 | 8 20 20 20 Final Carried 20 | 6 20 20 18 Class Distribution -------------------- 100% | Mutant Dominant Class ---------------- Mutant | -10/Materials Mutant | -10/Mines Mutant | -10/Subcaves Resources | -11 -10 -10 -10 ----------- Run | Yrd Mat Min Sub Matter Collected 824 | 233 591 . . Remotely . | . . . . Salvage Created 615 | 48 567 . . Parts 45 | 6 39 . . Haulers Intercepted . | . . . . Recyclers Shooed 1 | 1 . . . Parts Field Recycled . | . . . . Retrieved Matter . | . . . . Parts Self-Destructed . | . . . . Prevented . | . . . . Kills | -11 -10 -10 -10 ------- Run | Yrd Mat Min Sub Combat Hostiles Destroyed 12 | . 12 . . Guns 12 | . 12 . . Classes Destroyed 7 | 1 6 . . Worker 1 | . 1 . . Tunneler 3 | 3 . . . Recycler 1 | . 1 . . Operator 1 | . 1 . . Watcher 2 | . 2 . . Swarmer 3 | . 3 . . Grunt 9 | . 9 . . Best Kill Streak 4 | 3 4 . . Combat Bots Only 3 | . 3 . . Max Kills in Single Turn 2 | 1 2 . . Gunslinging 1 | . 1 . . Exploded . | . . . . Melee . | . . . . Uniques/NPCs Destroyed . | . . . . Combat | -11 -10 -10 -10 -------- Run | Yrd Mat Min Sub Hostile Shots Fired 85 | . 66 . 19 Missed 21 | . 15 . 6 Hits 64 | . 51 . 13 Projectile 64 | . 51 . 13 AOE 5 | . . . 5 Critical Strikes 3 | . 3 . . Damage Taken 1101 | 14 626 . 461 Core 300 | 12 131 . 157 Absorbed by Shields . | . . . . Regen/Repaired (Parts) 62 | . 62 . . Core Remaining (%) 95 | 95 . . . Volleys Fired 62 | 6 51 . 5 Largest 2 | 2 2 . 1 Hottest 40 | 40 40 . 33 Shots Fired 109 | 12 92 . 5 Gun 104 | 12 92 . . Cannon . | . . . . Launcher 5 | . . . 5 Special . | . . . . Kinetic 104 | 12 92 . . Thermal . | . . . . Explosive 5 | . . . 5 Electromagnetic . | . . . . Robot Hit Streak 8 | 3 7 . 8 Robot Miss Streak 6 | 3 6 . . Penetration Max . | . . . . Secondary Targets 1 | . 1 . . Max Gunslinging Chain 1 | . 1 . . Shots Hit Robots 64 | 6 55 . 3 Core Hits 30 | 3 26 . 1 Critical Kills . | . . . . Critical Parts Destroyed 1 | . 1 . . Critical Strikes 1 | . 1 . . Destroy 1 | . 1 . . Melee Attacks 14 | . 14 . . Impact 2 | . 2 . . Slashing 12 | . 12 . . Piercing . | . . . . Sneak Attacks 2 | . 2 . . Combat Hostiles . | . . . . Follow-up Attacks . | . . . . Damage Inflicted 1136 | 80 842 . 214 Guns 787 | 75 712 . . Cannons . | . . . . Explosions 214 | . . . 214 Melee 130 | . 130 . . Ramming 5 | 5 . . . Kinetic 787 | 75 712 . . Thermal . | . . . . Explosive 214 | . . . 214 Electromagnetic . | . . . . Impact . | . . . . Slashing 130 | . 130 . . Piercing . | . . . . Highest Corruption . | . . . . Average Corruption . | . . . . Corruption Purged . | . . . . Corruption Blocked . | . . . . Overload Shots . | . . . . Overflow Damage 5 | . . . 5 Projectiles . | . . . . Explosions 5 | . . . 5 Melee . | . . . . Knockbacks . | . . . . Impact . | . . . . Kinetic . | . . . . Secondary . | . . . . Self-Inflicted Damage 2 | 2 . . . Shots . | . . . . Rammed 3 | 2 1 . . Targets Rammed 3 | 2 1 . . Kicked . | . . . . Crushed . | . . . . Highest Temperature 20 | . 20 . . Average Temperature 6 | . 6 . . Received Heat Transfer 414 | . 366 . 48 Siege Activations . | . . . . Martial Activations . | . . . . Shielding Activations . | . . . . Robots Disrupted . | . . . . Combat Hostiles . | . . . . Robots Corrupted . | . . . . Combat Hostiles . | . . . . Parts Fried . | . . . . Impact Corruptions . | . . . . Robots Melted . | . . . . Combat Hostiles . | . . . . Parts Melted . | . . . . Heat Transferred . | . . . . Parts Sabotaged . | . . . . Parts Stolen . | . . . . Parts Stripped . | . . . . Power Chain Reactions . | . . . . Alert | -11 -10 -10 -10 ------- Run | Yrd Mat Min Sub Maximum Alert Level . | . . . . Low Security (%) 100 | 100 100 100 . Level 1 . | . . . . Level 2 . | . . . . Level 3 . | . . . . Level 4 . | . . . . Level 5 . | . . . . High Security . | . . . . Max Security . | . . . . Peak Influence 67 | 10 67 16 . Initial 16 | . . 16 . Average 17 | . 20 2 . Influence Increases 376 | 15 361 . . Destroy 0b10 Robot/C 240 | . 240 . . Destroy 0b10 Robot/NC 40 | 15 25 . . Destroy Leader 64 | . 64 . . Successful Hack 12 | . 12 . . Destroy Structure 5 | . 5 . . Lose Combat Pursuer 15 | . 15 . . Influence Decreases 376 | 15 318 43 . Entered New Map 27 | . . 27 . Time Decay 319 | 15 288 16 . Lost Part 30 | . 30 . . Squads Dispatched 2 | . 2 . . Investigation . | . . . . Extermination . | . . . . Reinforcement 2 | . 2 . . Assault . | . . . . Garrison . | . . . . Intercept . | . . . . Searches Triggered . | . . . . Construction Impeded . | . . . . Haulers Reinforced . | . . . . Active Scanning Responses . | . . . . Cargo Convoy Interrupts . | . . . . Stealth | -11 -10 -10 -10 --------- Run | Yrd Mat Min Sub Distress Signals . | . . . . Communications Jammed . | . . . . Distress Signals . | . . . . Times Spotted 29 | . 26 . 3 Peak Tracking Total 3 | . 3 . 3 Tactical Retreats 1 | . 1 . . Traps | -11 -10 -10 -10 ------- Run | Yrd Mat Min Sub Traps Triggered 1 | . 1 . . Indirectly . | . . . . Trap Hack Attempts . | . . . . Triggered . | . . . . Disarmed . | . . . . Reprogrammed . | . . . . Reused . | . . . . Traps Extracted . | . . . . Installed . | . . . . Triggered . | . . . . Machines | -11 -10 -10 -10 ---------- Run | Yrd Mat Min Sub Machines Disabled . | . . . . Max in Single Turn . | . . . . Machines Repaired . | . . . . Machines Dismantled . | . . . . Machines Sabotaged . | . . . . Overloaded Fab Kills . | . . . . Hacking | -11 -10 -10 -10 --------- Run | Yrd Mat Min Sub Machines Accessed 10 | . 10 . . Terminals 7 | . 7 . . Fabricators . | . . . . Repair Stations 1 | . 1 . . Recycling Units 2 | . 2 . . Scanalyzers . | . . . . Garrison Access . | . . . . Total Hacks 23 | . 23 . . Successful 12 | . 12 . . Failed 10 | . 10 . . Catastrophic 4 | . 4 . . Database Lockouts 1 | . 1 . . Manual 11 | . 11 . . Terminals 19 | . 19 . . Fabricators . | . . . . Repair Stations 2 | . 2 . . Recycling Units 2 | . 2 . . Scanalyzers . | . . . . Garrison Access . | . . . . Terminal Hacks 6 | . 6 . . Robot Analysis 2 | . 2 . . Patrol Status 1 | . 1 . . Recall Reinforcements 1 | . 1 . . Hauler Manifests 1 | . 1 . . Zone Layout 1 | . 1 . . Fabricator Hacks . | . . . . Repair Station Hacks 2 | . 2 . . Scan Component 1 | . 1 . . Repair 1 | . 1 . . Recycling Unit Hacks 2 | . 2 . . Retrieve Components 2 | . 2 . . Scanalyzer . | . . . . Garrison Access Hacks . | . . . . Unauthorized Hacks 2 | . 2 . . Terminals 2 | . 2 . . Botnet 2 | . 2 . . Fabricators . | . . . . Repair Stations . | . . . . Recycling Units . | . . . . Scanalyzers . | . . . . Garrison Access . | . . . . Data Cores Recovered . | . . . . Used . | . . . . Hacking Detections 6 | . 6 . . Full Trace Events . | . . . . Feedback Events . | . . . . Feedback Blocked . | . . . . Robot Schematics Acquired . | . . . . Robots Built . | . . . . Authchips . | . . . . Time . | . . . . Total Robot Build Rating . | . . . . Part Schematics Acquired . | . . . . Parts Built . | . . . . Authchips . | . . . . Time . | . . . . Total Part Build Rating . | . . . . Parts Repaired 1 | . 1 . . Time 26 | . 26 . . Parts Recycled . | . . . . Recycled Matter . | . . . . Retrieved Matter . | . . . . Retrieved Components 4 | . 4 . . Parts Scanalyzed . | . . . . Part Schematics Acquired . | . . . . Parts Damaged . | . . . . Bothacking | -11 -10 -10 -10 ------------ Run | Yrd Mat Min Sub Used RIF Installer . | . . . . Robots Hacked . | . . . . Non-combat . | . . . . Combat . | . . . . Robot Hacks Applied . | . . . . Relay Couplers Released . | . . . . Fabnet Peak Effective % . | . . . . Robots Rewired . | . . . . Allies Hacked . | . . . . Hacks Repelled . | . . . . Allies | -11 -10 -10 -10 -------- Run | Yrd Mat Min Sub Total Allies . | . . . . Largest Group . | . . . . Highest-Rated Group . | . . . . Highest-Rated Ally . | . . . . Total Orders . | . . . . Ally Attacks . | . . . . Total Damage . | . . . . Kills . | . . . . Allies Corrupted . | . . . . Allies Melted . | . . . . Intel | -11 -10 -10 -10 ------- Run | Yrd Mat Min Sub Active Infowar (turns) 1270 | 16 960 189 105 Seismic 1270 | 16 960 189 105 Robot Analysis Total 2 | . 2 . . Derelict Logs Recovered 1 | . . 1 . Drone Launches . | . . . . Drone Recoveries . | . . . . Exploration | -11 -10 -10 -10 ------------- Run | Yrd Mat Min Sub Turns Passed 1634 | 97 1243 189 105 Spaces Moved 1077 | 69 743 179 86 Core 7 | 7 . . . Treads 109 | . 109 . . Legs . | . . . . Wheels 961 | 62 634 179 86 Hover . | . . . . Flight . | . . . . Fastest Speed 50 | 50 90 105 105 Average Speed 118 | 88 125 105 105 Slowest Speed 240 | 150 240 105 120 Overloaded Moves . | . . . . Propulsion Burnouts . | . . . . Robots Hopped . | . . . . Potential Cave-ins . | . . . . Cave-ins Triggered . | . . . . Exploration Rate (%) 37 | 4 98 38 9 Regions Visited 3 Branch Regions 2 Pre-discovered Areas 1 | . . 1 . Known Exits Taken . | . . . . Unknown Exits Taken 3 | 1 1 1 . Scrap Searched . | . . . . Spaces Dug 5 | . 5 . . Terrain Destroyed 26 | . 5 . 21 Melee 5 | . 5 . . Projectile . | . . . . AOE 21 | . . . 21 Terrain Rammed . | . . . . Walls Destroyed . | . . . . Machines Disabled . | . . . . Actions | -11 -10 -10 -10 --------- Run | Yrd Mat Min Sub Total 1292 | 89 930 179 94 Wait 62 | . 62 . . Move 1074 | 68 742 178 86 Hop . | . . . . Pick Up 32 | 6 26 . . Fast Attach 9 | 7 2 . . Attach 6 | . 4 . 2 Detach . | . . . . Swap 20 | . 18 1 1 Drop 10 | . 10 . . Fire 62 | 6 51 . 5 Melee 14 | . 14 . . Ram 3 | 2 1 . . Kick . | . . . . Crush . | . . . . Escape Stasis . | . . . . Rewire . | . . . . Trap . | . . . . Miscellaneous . | . . . . Route ------- -11/Scrapyard -10/Materials (discovered 5 exits: [*Mat x2] / [*Min x2] / [*Sub]) -10/Mines -10/Subcaves History --------- Turn | Location | Event 19 | -11/Scrapyard | Discovered new exit (range 16) 98 | -11/Scrapyard | Entered Materials 187 | -10/Materials | Central database locked down 278 | -10/Materials | Discovered new exit (range 9) 304 | -10/Materials | Build established: Mutant 345 | -10/Materials | Discovered new exit (range 15) 488 | -10/Materials | Discovered new exit (range 16) 533 | -10/Materials | Repaired Lgt. Armor Plating 917 | -10/Materials | Discovered new exit (range 13) 981 | -10/Materials | Discovered new exit (range 9) 1150 | -10/Materials | Core integrity fell below 50% 1341 | -10/Materials | Entered Mines 1393 | -10/Mines | Met a Derelict bent on vengeance 1412 | -10/Mines | Learned location of Storage (-7) 1520 | -10/Mines | Discovered new exit (range 8) 1530 | -10/Mines | Entered Subcaves 1531 | -10/Subcaves | Approached by a straggling Scientist 1618 | -10/Subcaves | Core integrity fell below 20% 1635 | -10/Subcaves | Destroyed by J3-BP2(R) with Subdweller Shrapnel Launcher Last Messages --------------- 01476_ K-01 Serf collects debris. 01487_ T-07 Excavator is excavating. 01520_ EXIT=FOUND LOCATION=UNKNOWN AMBIENT_HEAT=-10 GOAL=ESCAPE 01531_ S0-S0D(c): "Thank the algorithms! I was beginning to lose hope I'd never make it past all the Subs lurking out here." 01534_ S0-S0D(c): "Hey, let me tag along and I can get us both out of this nasty situation. At least I think I can... The group I got separated from was talking about a shortcut back to the UFD." S0-S0D(c): "I think it's somewhere northwest of here" 01623_ Arm. Wheel destroyed. 01627_ Lgt. Ion Engine destroyed. 01632_ The unstable cave ceiling collapses. 01634_ Rocket Launcher destroyed. Map ----- +----------------------------------------------------+ | ?????????????????????????????????????????????????? | | ?????????????????????????????????????????????????? | | ?????????????????????????????????????????????????? | | ?????????????????????????????????????????????????? | | ?????????????????????????????????????????????????? | | ?????????????????????????????????????????????????? | | ?????????????????????????????????????????????????? | | ?????????????????????????????????????????????????? | | ?????????????????????????????????????????????????? | | ?????????????????????????????????????????????????? | | ????????????????????????# ???????????????????????? | | ???????????????????????# ???????????????????????? | | ??????????????????????? ???????????????????????? | | ??????????????????????? ???????????????????????? | | ??????????????????????? ???????????????????????? | | ??????????????????????? ???????????????????????? | | ????????????? ????????# ??????????????????????? | | ????????????? ?????## #??????????????????????? | | ???????????? #????# ##?????????????????????? | | ???????????? #### ##????????????????????? | | ???????????? # ######???????????????? | | ???????????# #; ##??????????????? | | ??????????? #??????????????? | | ?????????? R #??????????????? | | ?????????? #???????????????? | | ??????????# @ #????????????????? | | ???????????## ##???????????????? | | ???????????# #???????????????? | | ???????????## ## #???????????????? | | ???????????????# #???????????????? | | ???????????????## ; #?????????????? | | ????????????????#####; #????????????? | | ????????????????????## ; ##????????????? | | ????????????????????# ## ##?????????????? | | ???????????????????## #? #??????????????? | | ???????????????????# ##? ?????????????? | | ???????????????????# #? #????????????? | | ??????????????????# ###R #??# #????????????? | | ?????????????????# #??# R #???# #????????????? | | ????????????????# ##???# #???? ##????????????? | | ????????????????# #????## #?????#?????????????? | | ???????????????# ???### ##??????????????????? | | ?????????????? ???## #??????????????????? | | ????????????? # ??## #??????????????????? | | ????????????? #??## #####??????????????????? | | ?????????????? #???# ###?##?????????????????? | | ???????????????????# ## ####??????????????? | | ???????????????????# #??????????????? | | ???????????????????# ## ##?????????????? | | ???????????????????# #### ##????????????? | +----------------------------------------------------+ Best States ------------- Heat Dissipation 25 Energy Generation 10 Energy Capacity 250 Matter Stores 300 Matter Capacity 300 Sight Range 16 Terrain Scan Density 10 Armor Coverage 150 Evasion (%) 42 Recoil Reduction 2 Item Schematics ----------------- None Robot Schematics ------------------ None Fabricated ------------ Nothing Repaired ---------- Lgt. Armor Plating | 31% | -10/Materials Alien Tech Used ----------------- None Achievements -------------- None Challenges ------------ None Game ------ Seed ThrusterTargetingBlasthammer Manual? 0 Play Time 00:24:59 Cumulative 34.3 hours Start 2025.06.19 @ 11:18:05 End 2025.06.19 @ 11:40:56 Sessions 1 Manual Loads 0 Difficulty Rogue Special Mode None Game No. 26 Rogue 26 Adventurer 0 Explorer 0 Win Type - Total 0 Types 0/0/0/0/0/0/0/0/0/0 Lore% 23 Gallery% 22 Achievement% 22 Wizard Run 0 Options --------- Layout 2 ASCII 0 Keyboard 0 Movement Numpad Keybinds 0 Fullscreen 1 Font 32/SmallcapsGlow Map View 50x44 Zoom Use 0% Tactical HUD 1 Map Filters NONE Filters NONE Steam 1 RUN: 82e009cd-c7d1-42c6-a73b-8ec29262cffd